bitfinex-derivatives/quotes_ETHF0:USTF0_20250210
["timestamp","ask_amount","ask_price","bid_price","bid_amount"]
[1739152076889,3.21162874,2575.5,2575.2,0.00582966]
[1739152077082,0.00382874,2575.5,2575.2,0.00582966]
[1739152077487,3.2078,2575.4,2575.2,0.00582966]
[1739152078093,9.2078,2575.4,2574.6,3.451]
[1739152078288,3.2078,2575.2,2574.3,18.504]
[1739152078695,3.2078,2575.2,2574.4,3.2078]
[1739152078889,0.00382874,2575.5,2574.9,3.2078]
[1739152079492,0.00382874,2575.5,2574.9,3.21362966]
[1739152079797,0.00382874,2575.5,2575.0,5.16336077]
[1739152080097,0.00382874,2575.5,2574.9,0.00582966]
[1739152080288,0.00382874,2575.5,2575.1,3.2078]
[1739152080484,3.2078,2576.2,2575.4,3.2078]
[1739152080690,3.2078,2576.2,2575.4,44.0078]
[1739152081494,3.2078,2576.1,2575.1,3.2078]
[1739152081700,3.2078,2575.4,2574.6,3.402]
[1739152082198,3.2078,2575.4,2575.3,0.00582966]
[1739152082596,9.2078,2575.4,2574.3,59.304]
[1739152082797,3.2078,2574.6,2573.5,6.5998]
[1739152083101,6.6134,2576.0,2574.5,3.98442]
[1739152083395,6.6134,2576.0,2575.5,3.2078]
[1739152083597,4.04323934,2575.9,2575.5,3.2078]
[1739152083800,7.25103934,2575.9,2575.3,3.2078]
[1739152084002,7.25103934,2575.9,2575.5,0.00582966]
[1739152084299,3.2078,2575.6,2575.0,3.2078]
[1739152084499,3.2078,2575.6,2574.8,3.2078]
[1739152084803,4.04738392,2575.5,2574.8,3.2078]
[1739152085299,3.2078,2574.9,2573.1,24.9633]
[1739152085500,3.2078,2573.7,2573.1,21.892]
[1739152085694,3.2078,2573.5,2573.1,18.488]
[1739152085899,3.2078,2573.2,2573.1,18.488]
[1739152086105,3.2078,2573.2,2573.0,0.00582966]
[1739152086509,9.2078,2573.2,2571.9,18.489]
[1739152086805,3.2078,2572.1,2571.9,18.489]
[1739152087008,3.2078,2572.1,2570.8,0.3888]
[1739152087009,3.2078,2572.1,2570.8,3.393]
[1739152087213,3.2078,2571.4,2570.8,6.6008]
[1739152087407,3.2078,2571.8,2570.9,5.08483398]
[1739152087803,3.2153,2573.0,2571.0,3.387]
[1739152087804,3.2078,2571.2,2571.0,3.387]
[1739152088004,0.00582966,2571.4,2570.9,5.08483398]
[1739152088206,0.00582966,2571.4,2570.9,3.38]
[1739152088207,3.2078,2571.2,2570.9,3.38]
[1739152088905,0.00582966,2571.4,2570.9,3.38]
[1739152089107,0.00582966,2571.4,2571.0,5.01521542]
[1739152089307,0.00582966,2571.4,2570.9,3.38]
[1739152089506,0.00582966,2571.4,2571.1,4.98132536]
[1739152089710,3.2078,2571.8,2571.1,4.98132536]
[1739152090011,3.2078,2571.8,2571.0,0.77768]
[1739152090205,3.2078,2572.1,2571.2,4.98132536]
[1739152090404,3.2078,2572.7,2571.6,3.2078]
[1739152090712,3.2078,2572.7,2572.6,40.8]
[1739152090910,3.2078,2573.2,2572.6,40.8]
[1739152091105,3.2078,2573.2,2572.7,0.77719]
[1739152091305,3.2078,2573.2,2572.6,44.0078]
[1739152091500,0.00582966,2572.9,2572.6,40.8]
[1739152091716,3.2078,2573.5,2572.7,5.04502414]
[1739152092108,3.2078,2573.5,2572.8,0.3888]
[1739152092305,3.2078,2573.5,2572.8,5.03919448]
[1739152092510,3.4275,2574.5,2572.7,0.00582966]
[1739152092511,3.2078,2573.3,2572.7,0.00582966]
[1739152092715,3.2078,2573.5,2572.7,0.00582966]
[1739152093105,0.00582966,2573.3,2572.7,0.00582966]
[1739152093707,0.00582966,2573.3,2572.8,5.07577944]
[1739152093912,0.00582966,2573.3,2573.0,0.77708]
[1739152094113,3.2078,2574.5,2573.0,3.2078]
[1739152094319,3.2078,2574.5,2573.7,0.77688]
[1739152094522,3.2078,2574.5,2573.8,3.343]
[1739152095019,3.2078,2574.1,2573.8,3.343]
[1739152095714,3.2078,2574.0,2573.8,3.343]
[1739152096116,0.00582966,2574.4,2573.8,9.343]
[1739152096415,3.21362966,2574.4,2573.8,3.343]
[1739152096715,3.2078,2574.1,2573.8,3.343]
[1739152096921,0.00582966,2574.4,2573.8,3.343]
[1739152097222,3.2078,2574.3,2573.8,3.343]
[1739152097421,3.2078,2573.9,2573.8,3.343]
[1739152097620,3.2078,2573.9,2573.7,0.00582966]
[1739152098418,3.2078,2573.6,2572.0,3.316]
[1739152098718,3.2078,2572.5,2572.0,3.316]
[1739152099023,3.2078,2572.5,2572.1,40.8]
[1739152099616,3.2078,2572.5,2571.8,3.307]
[1739152099617,9.2078,2572.5,2571.8,3.307]
[1739152099914,0.00582966,2572.7,2572.2,0.00582966]
[1739152100122,3.2078,2572.3,2572.2,40.80582966]
[1739152100313,3.2078,2572.3,2572.2,0.00582966]
[1739152100918,9.2078,2572.3,2572.2,0.00582966]
[1739152101216,9.2078,2572.3,2571.2,18.492]
[1739152101418,3.2078,2571.5,2571.3,40.8]
[1739152101613,3.2078,2572.4,2571.3,45.73769553]
[1739152101811,0.00582966,2572.7,2572.0,0.7774]
[1739152102017,0.00582966,2572.7,2572.1,6.4988]
[1739152102223,0.00582966,2572.7,2572.1,12.21386553]
[1739152102424,0.00582966,2572.7,2572.1,3.29682966]
[1739152102811,3.2078,2572.6,2572.1,3.29682966]
[1739152103615,0.00582966,2572.7,2572.1,0.00582966]
[1739152103616,3.2078,2572.2,2572.1,0.00582966]
[1739152104826,3.21362966,2572.7,2572.1,0.00582966]
[1739152105025,0.00582966,2572.7,2572.1,0.00582966]
[1739152105521,3.2078,2573.4,2572.4,3.2078]
[1739152105720,3.2078,2573.4,2572.2,45.96186172]
[1739152105721,3.2078,2574.0,2572.9,3.2078]
[1739152105920,3.2078,2574.0,2573.0,24.9867]
[1739152106120,3.2078,2573.6,2573.0,29.92929277]
[1739152106626,3.2078,2573.6,2573.0,24.9867]
[1739152106823,3.21362966,2573.6,2573.0,24.99252966]
[1739152107026,0.00582966,2573.6,2573.1,5.0325314]
[1739152107425,3.2078,2574.2,2573.7,0.77687]
[1739152107622,3.2078,2574.2,2573.3,0.77699]
[1739152107821,3.2078,2574.2,2573.3,3.2078]
[1739152108124,3.2078,2573.9,2573.6,5.15985209]
[1739152108323,6.5136,2575.8,2573.6,0.77691]
[1739152108324,3.2078,2574.4,2573.6,0.77691]
[1739152108624,0.00582966,2574.0,2573.7,5.15985209]
[1739152108934,0.00582966,2574.0,2573.7,0.00582966]
[1739152109527,3.2078,2573.8,2573.7,0.00582966]
[1739152110815,0.00582966,2574.0,2573.7,0.00582966]
[1739152110816,3.2078,2573.9,2573.7,0.00582966]
[1739152111616,9.2078,2573.9,2573.7,0.00582966]
[1739152111821,3.2078,2573.5,2572.0,40.8]
[1739152112027,6.0,2573.9,2572.0,40.8]
[1739152112028,3.2078,2572.6,2572.0,40.8]
[1739152112328,3.2078,2573.3,2572.5,3.31174538]
[1739152112525,3.2078,2572.9,2572.5,3.31174538]
[1739152113421,3.2078,2572.6,2572.5,3.31174538]
[1739152113821,3.2078,2573.1,2572.5,3.234]
[1739152114020,3.2078,2573.3,2572.5,3.234]
[1739152114226,3.2078,2573.0,2572.5,3.234]
[1739152114624,3.2078,2573.0,2572.6,5.09145452]
[1739152114826,3.2078,2573.5,2572.7,3.98497]
[1739152115027,3.21362966,2574.0,2572.7,3.2078]
[1739152115229,3.21362966,2574.0,2572.8,15.11699027]
[1739152115434,3.21362966,2574.0,2573.1,0.77705]
[1739152115633,3.21362966,2574.0,2573.2,18.497]
[1739152115835,3.2078,2573.6,2573.2,18.497]
[1739152116035,3.2078,2573.3,2573.2,18.497]
[1739152116230,3.2078,2573.8,2573.2,18.497]
[1739152116534,0.00582966,2574.0,2573.3,41.57701]
[1739152116832,0.00582966,2574.0,2573.4,3.197]
[1739152117028,3.2078,2573.5,2573.3,40.8]
[1739152117226,3.2078,2573.5,2573.2,18.497]
[1739152119025,4.11143443,2573.4,2572.6,0.07774236]
[1739152119232,3.2078,2572.7,2572.6,0.07774236]
[1739152119638,3.3032,2573.4,2572.6,0.07774236]
[1739152119639,3.2078,2572.9,2572.6,0.07774236]
[1739152120734,3.2078,2573.2,2572.6,0.07774236]
[1739152121334,3.2078,2573.2,2572.7,5.07968887]
[1739152121536,0.00582966,2574.0,2572.7,5.07968887]
[1739152121537,3.2078,2573.8,2572.7,5.07968887]
[1739152121727,3.2078,2573.5,2572.7,5.07968887]
[1739152122040,3.2078,2573.2,2572.6,0.07774236]
[1739152122237,3.2078,2572.9,2572.6,0.07774236]
[1739152123039,0.00582966,2574.0,2572.0,18.496]
[1739152123040,3.2078,2572.5,2572.0,18.496]
[1739152123236,3.4234,2573.8,2572.0,59.296]
[1739152123237,3.2078,2572.1,2572.0,59.296]
[1739152124034,3.2078,2572.1,2572.0,18.496]
[1739152124632,3.2078,2572.1,2571.8,0.00582966]
[1739152125033,9.2078,2572.1,2571.8,0.00582966]
[1739152125338,9.2078,2572.1,2571.0,40.8]
[1739152125538,3.2078,2571.1,2570.7,18.496]
[1739152125739,3.2078,2570.8,2569.8,3.141]
[1739152125945,3.2078,2570.0,2569.9,40.8]
[1739152126137,3.2078,2570.4,2569.9,40.8]
[1739152126337,3.2078,2570.0,2569.9,40.8]
[1739152126836,0.00582966,2570.2,2569.9,40.8]
[1739152127040,0.00582966,2570.2,2569.9,43.943]
[1739152127439,3.2078,2571.0,2570.1,3.2078]
[1739152127742,2.40809592,2571.3,2570.7,3.2078]
[1739152127939,3.2078,2570.8,2570.0,7.64816442]
[1739152128144,3.2078,2570.7,2570.0,3.16]
[1739152128347,3.2078,2570.1,2569.9,40.8]
[1739152128849,3.5746,2572.0,2569.9,40.8]
[1739152128850,3.2078,2570.4,2569.9,40.8]
[1739152129443,0.00582966,2570.6,2569.9,40.8]
[1739152130339,3.2078,2570.2,2569.9,40.8]
[1739152130642,0.00582966,2570.6,2569.9,40.8]
[1739152131045,0.00582966,2570.6,2570.2,3.2078]
[1739152131449,0.00582966,2570.6,2570.5,40.8]
[1739152131745,0.00582966,2570.6,2570.5,43.928]
[1739152131945,6.00582966,2570.6,2569.7,0.00582966]
[1739152132138,3.2078,2569.9,2569.7,0.00582966]
[1739152132339,3.2078,2569.9,2569.7,40.80582966]
[1739152132943,3.2078,2569.9,2569.7,0.00582966]
[1739152133248,9.2078,2569.9,2568.1,9.9393]
[1739152133547,3.2078,2568.6,2568.2,40.8]
[1739152134242,3.2078,2569.1,2568.3,5.09447775]
[1739152134643,0.00582966,2568.7,2568.3,5.09447775]
[1739152134855,0.00582966,2568.7,2568.4,3.5126]
[1739152135052,0.00582966,2568.7,2568.4,9.5126]
[1739152135349,0.00582966,2568.7,2568.5,5.17051111]
[1739152135646,0.00582966,2568.7,2568.2,40.8]
[1739152135852,3.2078,2568.5,2568.2,40.8]
[1739152137140,0.00582966,2568.7,2568.2,46.8]
[1739152137339,0.00582966,2568.7,2568.3,5.92605419]
[1739152137551,0.00582966,2568.7,2568.3,18.30625419]
[1739152137852,3.2078,2569.1,2568.4,3.2078]
[1739152138054,3.2078,2569.1,2568.5,3.115]
[1739152138244,3.2078,2569.7,2568.7,3.98619]
[1739152138754,3.2078,2569.7,2568.8,5.82535429]
[1739152138942,3.2078,2570.0,2569.6,40.8]
[1739152139146,3.2078,2569.7,2569.6,40.8]
[1739152139548,9.2078,2569.7,2568.5,3.115]
[1739152139749,3.2078,2568.7,2568.5,3.115]
[1739152140050,3.2078,2569.2,2568.8,0.00582966]
[1739152140755,3.2078,2568.9,2568.8,0.00582966]
[1739152140956,3.2078,2568.9,2567.5,3.097]
[1739152141352,3.2078,2568.7,2568.0,40.8]
[1739152141950,3.2078,2568.1,2568.0,40.8]
[1739152142150,3.2078,2568.1,2567.2,3.094]
[1739152142650,3.2078,2567.6,2567.4,0.00584112]
[1739152142855,3.2078,2567.5,2567.4,0.00584112]
[1739152144553,3.2078,2567.8,2567.4,0.00584112]
[1739152144742,3.2078,2567.9,2567.5,3.081]
[1739152145052,3.2078,2567.9,2567.8,40.8]
[1739152145249,0.00582966,2568.6,2567.8,50.0078]
[1739152145443,0.00582966,2568.6,2567.9,9.8064]
[1739152145642,0.00582966,2568.6,2567.9,6.5986]
[1739152145851,0.00582966,2568.6,2567.8,40.8]
[1739152146150,3.2078,2568.3,2567.8,40.8]
[1739152146349,0.00582966,2568.6,2567.9,8.25814109]
[1739152146555,0.00582966,2568.6,2568.0,0.7786]
[1739152146750,0.00582966,2568.6,2567.9,14.25814109]
[1739152146955,3.2078,2569.5,2568.2,3.2078]
[1739152147248,3.2078,2569.8,2569.2,3.2078]
[1739152147553,3.2078,2570.3,2569.3,3.084]
[1739152147753,12.59176181,2570.4,2569.5,3.2078]
[1739152148053,12.59176181,2570.4,2570.3,3.2078]
[1739152148248,12.59176181,2570.4,2570.3,6.2908]
[1739152148449,13.99084646,2570.5,2570.3,12.2908]
[1739152148755,3.2078,2571.6,2570.4,0.77786]
[1739152149050,3.2078,2571.6,2570.3,11.33400904]
[1739152149051,3.2078,2571.6,2571.0,3.2078]
[1739152149261,3.2078,2571.6,2571.1,3.073]
[1739152149954,0.00584112,2571.6,2571.3,3.2078]
[1739152150454,0.45192687,2574.2,2571.3,3.2078]
[1739152150455,3.2078,2572.6,2571.4,5.06547524]
[1739152150655,3.2078,2572.6,2571.6,3.2078]
[1739152151053,3.2078,2573.3,2572.5,3.2078]
[1739152151259,7.0908,2573.7,2572.6,3.058]
[1739152151260,10.2986,2573.7,2572.6,3.058]
[1739152151558,3.2078,2573.1,2571.7,21.7308]
[1739152151755,0.00580636,2573.2,2572.6,0.00582954]
[1739152152058,3.2078,2572.7,2572.6,0.00582954]
[1739152152253,0.00580636,2573.2,2572.6,0.00582954]
[1739152152452,0.00580636,2573.2,2573.1,3.2078]
[1739152153058,0.00580636,2573.2,2573.1,50.0078]
[1739152153355,3.2078,2574.4,2573.1,55.01685878]
[1739152153565,3.2078,2574.4,2573.5,3.2078]
[1739152153855,3.2078,2574.1,2573.3,18.516]
[1739152154056,3.5047,2574.5,2573.3,18.516]
[1739152154057,3.2078,2574.0,2573.3,18.516]
[1739152154251,3.5047,2574.5,2573.4,3.2078]
[1739152154457,3.2078,2574.6,2573.4,8.29218165]
[1739152154657,3.2078,2574.6,2573.6,3.2078]
[1739152155157,3.2078,2574.3,2573.7,4.95996371]
[1739152155457,3.2078,2574.6,2573.4,0.3888]
[1739152155664,3.2078,2574.6,2573.6,3.2078]
[1739152155861,3.2078,2575.1,2574.2,3.2078]
[1739152156056,3.2078,2575.3,2574.2,6.2468]
[1739152156260,3.2078,2575.0,2574.2,6.2468]
[1739152156964,3.2078,2575.2,2574.2,6.2468]
[1739152157162,3.2078,2575.2,2574.3,5.15054234]
[1739152157460,3.2078,2575.2,2574.2,6.2468]
[1739152157661,3.2078,2575.2,2574.2,3.039]
[1739152157964,3.2078,2575.2,2574.3,4.93791196]
[1739152158163,3.2078,2575.5,2574.9,3.2078]
[1739152158362,3.2078,2575.8,2575.0,3.02]
[1739152158557,3.2078,2575.5,2575.0,3.019]
[1739152158861,3.2078,2575.5,2575.1,0.00582954]
[1739152159064,3.2078,2576.0,2575.1,0.00582954]
[1739152159362,3.2078,2576.0,2575.4,3.2078]
[1739152159571,3.2078,2576.0,2575.2,5.15724356]
[1739152159765,3.2078,2575.7,2575.1,0.00582954]
[1739152160067,3.2078,2576.0,2575.1,0.00582954]
[1739152160668,3.2078,2576.1,2575.1,0.00582954]
[1739152161162,3.2078,2576.1,2575.6,3.2078]
[1739152161365,3.2078,2576.1,2575.7,3.004]
[1739152161563,3.4934,2577.1,2575.7,5.02801641]
[1739152161564,3.2078,2575.8,2575.7,5.02801641]
[1739152161862,3.2078,2575.8,2575.1,0.00582954]
[1739152162068,3.2078,2575.2,2574.1,3.2078]
[1739152162255,3.2078,2574.9,2573.6,10.6904]
[1739152162463,3.2078,2574.9,2573.9,3.2078]
[1739152162665,3.2078,2574.7,2573.6,7.4826]
[1739152162862,3.2078,2574.7,2573.7,3.072]
[1739152163066,3.2078,2574.2,2573.6,7.0938]
[1739152163268,3.2078,2574.1,2573.9,0.00582954]
[1739152163468,3.2078,2574.4,2573.9,0.00582954]
[1739152163769,0.00582954,2574.5,2573.9,0.00582954]
[1739152164071,0.00582954,2574.5,2574.2,3.2078]
[1739152164270,0.00582954,2574.5,2574.1,3.2078]
[1739152164470,0.00582954,2574.5,2574.4,3.2078]
[1739152164769,0.00582954,2574.5,2574.4,5.08071811]
[1739152164978,0.00582954,2574.5,2574.4,8.13771811]
[1739152165181,0.00582954,2574.5,2574.4,3.057]
[1739152165384,0.00582954,2574.5,2574.4,14.13771811]
[1739152165681,3.2078,2575.2,2574.4,14.13771811]
[1739152165682,3.2078,2575.2,2574.4,54.93771811]
[1739152165879,3.2078,2575.2,2574.5,18.494]
[1739152166178,3.2078,2575.2,2574.6,5.05760517]
[1739152166482,3.2078,2575.2,2574.5,21.547]
[1739152166881,3.2078,2575.2,2574.6,5.06751109]
[1739152167075,3.2078,2575.6,2574.8,3.2078]
[1739152167278,3.2078,2576.0,2575.1,3.2078]
[1739152167482,3.2078,2576.3,2575.3,3.2078]
[1739152167683,3.2078,2576.6,2575.8,3.2078]
[1739152167874,3.2078,2577.0,2576.0,3.2078]
[1739152168180,3.2078,2576.7,2576.1,18.491]
[1739152168477,3.2078,2577.1,2576.1,18.491]
[1739152168785,6.6271,2577.4,2576.8,3.2078]
[1739152169175,6.6271,2577.4,2576.7,3.059]
[1739152169482,3.2078,2577.1,2576.8,0.00582954]
[1739152171086,6.6271,2577.4,2576.8,0.00582954]
[1739152171579,3.2078,2577.4,2576.8,0.00582954]
[1739152171785,3.2078,2577.1,2576.8,0.00582954]
[1739152172180,9.2078,2577.1,2576.8,0.00582954]
[1739152172380,3.2078,2577.1,2576.8,0.00582954]
[1739152172777,9.2078,2577.1,2576.8,0.00582954]
[1739152172985,4.1229052,2577.0,2575.9,3.047]
[1739152173181,3.2078,2576.4,2575.9,3.047]
[1739152173786,3.2078,2576.4,2575.8,18.485]
[1739152174089,3.2078,2576.1,2575.8,18.485]
[1739152174284,3.2078,2576.1,2575.8,18.49082954]
[1739152174490,0.00582954,2576.4,2575.8,18.49082954]
[1739152174684,3.2078,2577.0,2576.2,3.2078]
[1739152175384,3.2078,2577.0,2576.3,3.035]
[1739152175590,3.2078,2577.0,2575.9,3.2078]
[1739152175786,3.2078,2576.6,2576.0,3.035]
[1739152176083,3.2078,2576.3,2576.0,3.035]
[1739152176684,3.2078,2576.3,2575.8,18.49082954]
[1739152177189,3.2078,2576.7,2576.0,3.2078]
[1739152177486,3.2078,2577.4,2576.2,3.2078]
[1739152177692,3.2078,2577.0,2576.3,3.025]
[1739152177885,3.2078,2576.7,2576.0,3.3776]
[1739152178079,3.2078,2576.4,2576.2,3.023]
[1739152178287,3.2078,2576.4,2576.1,40.8]
[1739152178484,3.2078,2576.4,2575.1,10.0415]
[1739152178685,3.2078,2576.1,2575.1,6.3996]
[1739152178884,3.2078,2576.1,2575.2,40.8]
[1739152179893,3.2078,2576.1,2575.2,44.0078]
[1739152180191,3.2078,2576.4,2575.2,44.0078]
[1739152180584,3.2078,2576.4,2575.5,3.2078]
[1739152180891,3.2078,2576.7,2575.9,7.98202836]
[1739152181088,3.2078,2577.0,2575.9,7.98202836]
[1739152181583,3.2078,2577.0,2576.2,3.2078]
[1739152181784,3.2078,2577.0,2575.9,11.18982836]
[1739152181986,3.2078,2576.7,2575.9,6.2088]
[1739152182581,3.2078,2576.8,2575.8,21.48582954]
[1739152182990,3.2078,2576.8,2576.1,3.2078]
[1739152183190,3.2078,2576.6,2575.8,21.48582954]
[1739152183388,3.2078,2576.5,2575.8,21.48582954]
[1739152183785,3.2078,2576.5,2575.8,24.69362954]
[1739152184088,3.2078,2576.5,2575.8,21.48582954]
[1739152184385,3.2078,2576.7,2575.9,45.81720005]
[1739152184586,3.2078,2576.7,2575.9,48.80020005]
[1739152184987,3.2078,2577.0,2575.9,48.80020005]
[1739152185188,3.2078,2576.7,2575.9,48.80020005]
[1739152185491,3.2078,2576.1,2575.9,40.8]
[1739152185688,3.2078,2576.7,2575.9,43.771]
[1739152185888,3.2078,2577.0,2575.9,46.9788]
[1739152186191,3.2078,2577.3,2576.0,8.32910541]
[1739152186387,3.2078,2577.3,2576.0,8.51510541]
[1739152186591,3.2078,2577.3,2576.1,2.973]
[1739152186790,0.45819854,2577.7,2576.1,2.973]
[1739152186791,3.2078,2577.0,2576.1,2.973]
[1739152186986,3.2078,2577.0,2576.2,5.07876195]
[1739152187190,3.2078,2576.3,2576.1,2.973]
[1739152187488,3.2078,2576.2,2575.9,40.8]
[1739152188091,3.2078,2576.3,2575.9,40.8]
[1739152188390,3.2078,2576.1,2575.9,40.8]
[1739152188585,3.2078,2576.1,2575.8,0.00582954]
[1739152188791,3.2078,2576.1,2574.7,2.973]
[1739152188994,3.2078,2575.5,2574.7,2.973]
[1739152189199,3.2078,2575.5,2574.9,40.8]
[1739152189996,3.2078,2575.8,2575.0,5.14415067]
[1739152190199,0.00582954,2575.5,2575.0,5.14415067]
[1739152190787,3.2078,2576.1,2575.0,5.14415067]
[1739152190788,3.2078,2576.1,2575.1,3.2078]
[1739152190993,3.2078,2576.1,2575.0,8.35195067]
[1739152191197,3.2078,2576.1,2575.2,5.05976121]
[1739152191402,3.2078,2576.1,2575.6,3.2078]
[1739152191697,3.2078,2576.1,2575.7,2.964]
[1739152192794,3.2078,2576.5,2576.0,3.2078]
[1739152192989,3.3498,2577.6,2576.1,18.477]
[1739152192990,3.2078,2577.1,2576.1,18.477]
[1739152193189,3.2078,2577.4,2576.2,6.5757]
[1739152193395,3.2078,2577.1,2576.3,0.00582954]
[1739152193588,3.2078,2577.1,2576.3,5.05170195]
[1739152194197,3.2078,2577.4,2576.3,8.25950195]
[1739152194392,3.2078,2577.4,2576.6,3.2078]
[1739152194599,3.2078,2577.4,2576.7,47.2488]
[1739152194794,3.2078,2577.4,2576.7,52.40040918]
[1739152195706,3.2078,2577.1,2576.7,43.743]
[1739152195903,3.2078,2577.1,2576.7,2.943]
[1739152196200,3.2078,2576.8,2576.7,2.943]
[1739152196397,3.2078,2577.1,2576.7,2.943]
[1739152196999,3.2078,2577.4,2576.8,8.20051353]
[1739152197596,1.3678,2577.4,2576.8,8.20051353]
[1739152197907,3.2078,2578.1,2577.2,3.2078]
[1739152198109,3.2078,2578.1,2577.3,3.4209]
[1739152198408,3.2078,2578.1,2577.4,0.00581813]
[1739152198605,3.2078,2578.4,2577.5,6.1528]
[1739152198801,3.2078,2578.4,2577.5,11.29466473]
[1739152199106,7.1636,2579.3,2577.7,3.2078]
[1739152199307,3.2078,2579.0,2578.0,3.2078]
[1739152199609,3.2078,2579.4,2578.6,3.2078]
[1739152199901,3.2078,2579.1,2578.1,7.913705]
[1739152200108,2.941,2580.2,2578.7,0.00581813]
[1739152200109,3.2078,2579.4,2578.7,0.00581813]
[1739152200510,14.18956131,2580.2,2578.8,8.2791659]
[1739152200702,14.18956131,2580.2,2579.1,3.2078]
[1739152200911,3.2078,2580.0,2578.9,6.4161]
[1739152201104,3.2078,2579.7,2578.7,0.00581813]
[1739152201407,3.2078,2579.3,2578.7,0.00581813]
[1739152201608,3.2078,2579.8,2578.7,0.00581813]
[1739152201810,3.2078,2579.1,2578.7,0.00581813]
[1739152202806,3.2078,2578.8,2578.7,0.00581813]
[1739152203609,3.2078,2579.4,2578.7,0.00581813]
[1739152203810,3.2078,2579.4,2578.7,2.97781813]
[1739152204308,3.2078,2580.0,2579.3,3.2078]
[1739152204504,3.2078,2580.0,2578.7,6.45053251]
[1739152205006,3.2078,2580.0,2578.8,4.98782862]
[1739152205201,3.5407,2580.5,2579.1,3.2078]
[1739152205202,3.2078,2580.3,2579.1,3.2078]
[1739152205406,3.2078,2580.7,2579.9,3.2078]
[1739152205604,14.18956131,2580.9,2580.0,2.96]
[1739152205800,14.18956131,2580.9,2580.0,7.94782862]
[1739152206118,14.18956131,2580.9,2580.5,3.2078]
[1739152206302,14.18956131,2580.9,2580.2,0.00581813]
[1739152206705,3.2078,2581.0,2580.3,5.10370501]
[1739152206907,3.2078,2580.6,2580.3,5.10370501]
[1739152207110,3.2078,2581.1,2580.2,0.00581813]
[1739152207406,3.2078,2580.7,2580.2,0.00581813]
[1739152207611,3.2078,2581.2,2580.2,0.00581813]
[1739152207811,0.01027815,2580.6,2580.2,0.00581813]
[1739152208109,3.21807815,2580.6,2580.2,0.00581813]
[1739152208905,3.2078,2580.3,2580.2,0.00581813]
[1739152209509,0.01027815,2580.6,2580.2,0.00581813]
[1739152209909,0.01027815,2580.6,2580.3,8.30281666]
[1739152210113,3.2078,2581.5,2580.3,14.30281666]
[1739152210312,3.2078,2581.5,2581.0,3.2078]
[1739152210507,3.2078,2581.5,2581.1,21.423]
[1739152211109,2.52792973,2581.5,2581.1,21.423]
[1739152211315,3.2078,2582.1,2581.4,3.2078]
[1739152211509,3.2078,2582.1,2581.2,5.0703406]
[1739152211704,3.2078,2582.1,2581.1,24.6308]
[1739152211705,3.2078,2582.1,2581.1,21.423]
[1739152211903,3.6296,2582.5,2581.4,0.00581813]
[1739152212107,3.2078,2581.5,2580.1,2.968]
[1739152212312,3.2078,2581.5,2580.4,3.2078]
[1739152212611,3.2078,2582.0,2580.7,3.2078]
[1739152212909,3.2078,2581.3,2580.2,4.27470096]
[1739152213104,4.08685867,2581.9,2580.1,2.968]
[1739152213105,3.2078,2581.7,2580.1,6.1758]
[1739152213301,0.00578007,2581.0,2580.5,0.00581813]
[1739152213904,0.00578007,2581.0,2580.6,5.01096297]
[1739152214108,0.00578007,2581.0,2580.7,6.1958]
[1739152214610,0.00578007,2581.0,2580.8,5.3584423]
[1739152215017,0.00578007,2581.0,2580.8,11.3584423]
[1739152215214,3.2078,2582.6,2580.8,11.3584423]
[1739152215413,3.2078,2582.6,2581.3,3.2078]
[1739152215618,3.2078,2582.3,2581.1,3.2078]
[1739152215915,3.2078,2582.3,2581.2,5.02654145]
[1739152216216,3.2078,2582.6,2581.4,3.2078]
[1739152216414,3.2078,2582.6,2581.5,21.418]
[1739152216718,3.2078,2582.6,2581.9,3.2078]
[1739152217015,3.2078,2583.2,2582.3,0.77428]
[1739152217211,3.2078,2583.2,2582.8,3.2078]
[1739152217409,3.2078,2583.5,2583.1,3.2078]
[1739152217718,3.2078,2583.5,2583.1,18.447]
[1739152217914,3.2078,2583.2,2583.1,18.447]
[1739152218109,3.2078,2583.6,2583.1,18.447]
[1739152219716,3.5436,2584.1,2583.1,18.447]
[1739152219717,3.2078,2583.3,2583.1,18.447]
[1739152219915,3.2078,2583.3,2583.0,0.00580653]
[1739152220113,9.2078,2583.3,2581.8,21.391]
[1739152220313,3.2078,2583.1,2581.8,21.391]
[1739152220514,3.2078,2583.1,2581.9,45.81433195]
[1739152220713,3.2078,2583.4,2582.2,3.2078]
[1739152221014,3.2078,2583.4,2581.9,40.8]
[1739152221015,3.2078,2583.7,2582.5,3.2078]
[1739152221209,3.2078,2583.4,2582.6,2.96]
[1739152221517,3.5436,2584.1,2582.6,2.96]
[1739152221518,3.21356787,2583.1,2582.6,2.96]
[1739152222118,0.00576787,2583.1,2582.7,5.14576126]
[1739152222419,3.2078,2583.9,2582.8,3.2078]
[1739152222620,3.2078,2583.9,2583.0,3.2078]
[1739152222822,3.2078,2583.9,2583.1,3.2078]
[1739152223016,3.2078,2583.9,2583.1,4.9283132]
[1739152223215,3.2078,2583.9,2583.0,8.1361132]
[1739152223415,3.2078,2583.9,2583.0,3.2078]
[1739152223616,3.2078,2583.9,2582.8,3.7335]
[1739152223811,3.2078,2583.9,2583.0,3.2078]
[1739152224021,3.2078,2583.6,2582.9,5.05728229]
[1739152224211,3.2078,2583.6,2582.5,2.96080653]
[1739152224520,3.2078,2583.1,2582.5,2.96080653]
[1739152224922,3.2078,2582.8,2582.5,0.00580653]
[1739152225721,9.2078,2582.8,2582.5,0.00580653]
[1739152225915,3.444,2582.7,2581.5,3.2078]
[1739152226117,3.2078,2582.4,2581.3,2.969]
[1739152226328,3.2078,2582.4,2581.9,40.8]